Cogmind - Beta 11 @@@ ROGUE MODE // 2022.04.18 @ 13:34:48 Player: RNGesus Result: Destroyed by DAS Turret with DAS Cannon Performance ------------- Evolutions (1) 500 Regions Visited (5) 1000 Robots Destroyed (38) 190 Value Destroyed (1095) 1095 Prototype IDs (39) 780 Alien Tech Used (0) 0 Bonus (-165) -165 TOTAL SCORE: 3400 Bonus ------- Aligned with FarCom 300 Friendly Fire -465 Cogmind --------- Core Integrity 0/400 Matter 295/300 Energy 73/100 System Corruption 0% Temperature Cool (0) Movement Core (50) Location -9/Exiles Parts ------- > --- POWER (1) -------- (None) > --- PROPULSION (3) --- (None) > --- UTILITY (3) ------ (None) > --- WEAPON (2) ------- (None) > --- INVENTORY (5) ---- Plasma Cutter Mining Claw Mining Claw Mining Claw Peak State ------------ > --- POWER ------------ Improved Ion Engine > --- PROPULSION ------- Light Treads Light Treads Advanced Myomer Leg > --- UTILITY ---------- Huge Storage Unit > --- WEAPON ----------- 8R-AWN's Boregun Mining Claw > --- INVENTORY -------- Advanced Treads Improved Heat Sink High-capacity Matter Pod Experimental Sensor Array Seismic Detector Transport Network Coupler Light Armor Plating Hacking Suite Beamcaster Heavy Assault Rifle Improved Assault Rifle Improved Assault Rifle Heavy Battle Rifle 8R-AWN's Boregun Improved Grenade Launcher Datajack Plasma Cutter Mining Claw Mining Claw Mining Claw Mining Claw Katana [Rating: 30] Favorites ----------- Power Improved Ion Engine Engine Improved Ion Engine Propulsion Light Treads Treads Light Treads Leg Advanced Myomer Leg Flight Unit Improved Flight Unit Utility Light Armor Plating Device Improved Heat Sink Storage Huge Storage Unit Protection Light Armor Plating Weapon Heavy Battle Rifle Ballistic Gun Heavy Battle Rifle Launcher Improved Grenade Launcher Special Weapon Plasma Cutter Slashing Weapon Mining Claw Special Melee Weapon Datajack Build | -11 -10 -10 -9 -9 -9 ------- Run | Scr Mat Min Mat Min Exi Slots Evolved 2 | . . . 2 . . Power . | . . . . . . Propulsion 1 | . . . 1 . . Utility 1 | . . . 1 . . Weapon . | . . . . . . Parts Attached 43 | 6 6 3 10 2 16 Power 4 | 1 1 . . 1 1 Engine 4 | 1 1 . . 1 1 Core . | . . . . . . Reactor . | . . . . . . Propulsion 13 | 2 . . 7 . 4 Treads 11 | 2 . . 6 . 3 Leg 1 | . . . . . 1 Wheel . | . . . . . . Hover . | . . . . . . Flight 1 | . . . 1 . . Utility 11 | 1 4 1 2 1 2 Device 1 | . . . 1 . . Storage 4 | 1 2 1 . . . Processor . | . . . . . . Hackware . | . . . . . . Protection 6 | . 2 . 1 1 2 Artifact . | . . . . . . Weapon 15 | 2 1 2 1 . 9 Energy Gun . | . . . . . . Energy Cannon . | . . . . . . Ballistic Gun 9 | 2 1 2 1 . 3 Ballistic Cannon . | . . . . . . Launcher 2 | . . . . . 2 Special Weapon 1 | . . . . . 1 Impact Weapon . | . . . . . . Slashing Weapon 2 | . . . . . 2 Piercing Weapon . | . . . . . . Special Melee Weapon 1 | . . . . . 1 Unidentified Prototypes 2 | . . . 2 . . Parts Lost 18 | . 2 . . 1 15 Power 2 | . . . . . 2 Propulsion 6 | . . . . . 6 Utility 5 | . 1 . . 1 3 Weapon 5 | . 1 . . . 4 Highest Loss Streak 9 | . 1 . . 1 9 To Critical Strikes 3 | . . . . . 3 Average Slot Usage (%) 96 | . 98 100 99 99 90 Engine 10 | . 14 14 11 11 6 Treads 30 | . 28 28 33 33 32 Device 4 | . . . 11 11 6 Storage 12 | . 14 14 11 11 10 Protection 11 | . 13 14 10 10 11 Ballistic Gun 19 | . 27 28 22 22 7 Special Weapon 1 | . . . . . 3 Slashing Weapon 1 | . . . . . 4 Special Melee Weapon 1 | . . . . . 5 Naked Turns 4 | . . . . . 4 Heaviest Build 98 | 12 90 97 98 98 98 Greatest Support 63 | 40 40 40 63 63 63 Greatest Overweight (x) 2 | . 2 2 1 1 2 Average Overweight (x) 1 | . . 1 1 1 . Largest Inventory Capacity 25 | 8 25 25 25 25 25 Average Capacity 22 | 6 14 23 25 25 24 Most Carried 25 | 3 19 25 25 25 25 Average Carried 21 | 1 11 23 24 24 23 Final Capacity 25 | 8 20 25 25 25 5 Final Carried 25 | 3 19 25 25 24 4 Class Distribution -------------------- 53% | Mutant 46% | Scavenger-Mutant Dominant Class ---------------- Mutant | -10/Materials Mutant | -10/Mines Scavenger-Mutant | -9/Materials Mutant | -9/Mines Scavenger-Mutant | -9/Exiles Resources | -11 -10 -10 -9 -9 -9 ----------- Run | Scr Mat Min Mat Min Exi Matter Collected 1286 | 266 313 142 188 209 168 Remotely . | . . . . . . Salvage Created 1593 | 21 761 74 491 233 13 Parts 92 | 4 49 4 30 5 . Haulers Intercepted 5 | . 2 . 3 . . Recyclers Shooed 3 | . . . 3 . . Parts Field Recycled . | . . . . . . Retrieved Matter . | . . . . . . Parts Self-Destructed . | . . . . . . Prevented . | . . . . . . Kills | -11 -10 -10 -9 -9 -9 ------- Run | Scr Mat Min Mat Min Exi Combat Hostiles Destroyed 40 | . 15 2 7 11 5 Guns 35 | . 15 2 7 11 . AOE 5 | . . . . . 5 Classes Destroyed 9 | 1 5 . 2 1 . Worker 2 | . 2 . . . . Builder 1 | . 1 . . . . Tunneler 1 | 1 . . . . . Hauler 5 | . 2 . 3 . . Operator 2 | . 1 . 1 . . Grunt 22 | . 15 2 3 2 . Duelist 2 | . . . 1 1 . Sentry 3 | . . . 3 . . Assembled 15 | . . . . 8 7 Best Kill Streak 5 | 1 4 1 3 4 5 Combat Bots Only 5 | . 3 1 3 4 5 Max Kills in Single Turn 3 | 1 1 1 1 1 3 Gunslinging . | . . . . . . Exploded 3 | . . . . . 3 Melee . | . . . . . . Uniques/NPCs Destroyed . | . . . . . . Combat | -11 -10 -10 -9 -9 -9 -------- Run | Scr Mat Min Mat Min Exi Damage Taken 2898 | . 538 153 277 487 1443 Core 542 | . 90 . 16 105 331 Absorbed by Shields . | . . . . . . Core Remaining (%) 82 | 100 . 64 . . . Volleys Fired 145 | 1 61 11 22 26 24 Largest 2 | 2 2 2 2 2 1 Hottest 56 | 40 40 56 56 56 36 Shots Fired 266 | 2 122 22 44 52 24 Gun 247 | 2 122 22 44 52 5 Cannon . | . . . . . . Launcher 4 | . . . . . 4 Special 15 | . . . . . 15 Kinetic 247 | 2 122 22 44 52 5 Thermal 15 | . . . . . 15 Explosive 4 | . . . . . 4 Electromagnetic . | . . . . . . Robot Hit Streak 13 | 1 10 13 9 13 2 Robot Miss Streak 5 | . 3 2 2 2 5 Penetration Max . | . . . . . . Secondary Targets 4 | . 1 1 1 1 . Max Gunslinging Chain 1 | . 1 1 1 1 . Shots Hit Robots 200 | 1 86 17 33 34 29 Core Hits 97 | 1 41 4 14 18 19 Critical Kills . | . . . . . . Critical Parts Destroyed . | . . . . . . Critical Strikes 3 | . . . . . 3 Sever 3 | . . . . . 3 Melee Attacks 25 | . . . . . 25 Impact . | . . . . . . Slashing 15 | . . . . . 15 Piercing . | . . . . . . Sneak Attacks 10 | . . . . . 10 Combat Hostiles . | . . . . . . Follow-up Attacks 2 | . . . . . 2 Damage Inflicted 3553 | 10 1056 187 657 677 966 Guns 2597 | 10 1056 187 657 677 10 Cannons . | . . . . . . Explosions 553 | . . . . . 553 Melee 334 | . . . . . 334 Ramming . | . . . . . . Kinetic 2597 | 10 1056 187 657 677 10 Thermal 69 | . . . . . 69 Explosive 553 | . . . . . 553 Electromagnetic . | . . . . . . Impact . | . . . . . . Slashing 334 | . . . . . 334 Piercing . | . . . . . . Highest Corruption . | . . . . . . Average Corruption . | . . . . . . Corruption Purged . | . . . . . . Corruption Blocked . | . . . . . . Overload Shots . | . . . . . . Overflow Damage 16 | . . . . . 16 Projectiles . | . . . . . . Explosions 16 | . . . . . 16 Melee . | . . . . . . Knockbacks . | . . . . . . Impact . | . . . . . . Kinetic . | . . . . . . Secondary . | . . . . . . Self-Inflicted Damage 17 | . . . . . 17 Shots 1 | . . . . . 1 Rammed . | . . . . . . Targets Rammed . | . . . . . . Kicked . | . . . . . . Crushed . | . . . . . . Highest Temperature 73 | . 29 73 . 27 16 Average Temperature 15 | . 7 39 . 11 9 Received Heat Transfer 749 | . 300 90 81 278 . Siege Activations . | . . . . . . Robots Corrupted . | . . . . . . Combat Hostiles . | . . . . . . Parts Fried . | . . . . . . Impact Corruptions . | . . . . . . Robots Melted . | . . . . . . Combat Hostiles . | . . . . . . Parts Melted . | . . . . . . Heat Transferred 54 | . . . . . 54 Parts Sabotaged . | . . . . . . Parts Stolen . | . . . . . . Parts Stripped . | . . . . . . Power Chain Reactions . | . . . . . . Missiles Intercepted . | . . . . . . Alert | -11 -10 -10 -9 -9 -9 ------- Run | Scr Mat Min Mat Min Exi Peak Influence 242 | 5 242 120 200 114 . Initial 55 | . 3 55 . 33 . Average 66 | 1 112 33 59 74 . Maximum Alert Level 1 | . 1 . 1 . . Low Security (%) 94 | 100 90 100 87 100 . Level 1 5 | . 9 . 12 . . Level 2 . | . . . . . . Level 3 . | . . . . . . Level 4 . | . . . . . . Level 5 . | . . . . . . High Security . | . . . . . . Max Security . | . . . . . . Squads Dispatched 6 | . 4 . 2 . . Investigation 1 | . 1 . . . . Extermination . | . . . . . . Reinforcement 5 | . 3 . 2 . . Assault . | . . . . . . Garrison . | . . . . . . Intercept . | . . . . . . Searches Triggered . | . . . . . . Construction Impeded . | . . . . . . Haulers Reinforced . | . . . . . . Active Scanning Responses . | . . . . . . Cargo Convoy Interrupts . | . . . . . . Stealth | -11 -10 -10 -9 -9 -9 --------- Run | Scr Mat Min Mat Min Exi Distress Signals 3 | . 2 . . 1 . Communications Jammed . | . . . . . . Distress Signals . | . . . . . . Times Spotted 72 | . 35 3 16 12 6 Peak Tracking Total 7 | . 4 2 5 3 7 Tactical Retreats 4 | . . . . 1 3 Traps | -11 -10 -10 -9 -9 -9 ------- Run | Scr Mat Min Mat Min Exi Traps Triggered 2 | . 1 1 . . . Indirectly . | . . . . . . Trap Hack Attempts . | . . . . . . Triggered . | . . . . . . Disarmed . | . . . . . . Reprogrammed . | . . . . . . Reused . | . . . . . . Traps Extracted . | . . . . . . Installed . | . . . . . . Triggered . | . . . . . . Machines | -11 -10 -10 -9 -9 -9 ---------- Run | Scr Mat Min Mat Min Exi Machines Disabled 5 | . . . 1 . 4 Max in Single Turn 1 | . . . 1 . 1 Machines Sabotaged . | . . . . . . Garrisons Compromised . | . . . . . . Overloaded Fab Kills . | . . . . . . Hacking | -11 -10 -10 -9 -9 -9 --------- Run | Scr Mat Min Mat Min Exi Machines Accessed 5 | . 1 1 1 . 2 Terminals 2 | . 1 . 1 . . Fabricators . | . . . . . . Repair Stations . | . . . . . . Recycling Units . | . . . . . . Scanalyzers . | . . . . . . Garrison Access . | . . . . . . Total Hacks 16 | . 6 1 4 . 5 Successful 8 | . 2 1 . . 5 Failed 7 | . 3 . 4 . . Catastrophic . | . . . . . . Database Lockouts 1 | . 1 . . . . Manual 9 | . 4 . 4 . 1 Terminals 10 | . 6 . 4 . . Fabricators . | . . . . . . Repair Stations . | . . . . . . Recycling Units . | . . . . . . Scanalyzers . | . . . . . . Garrison Access . | . . . . . . Terminal Hacks 8 | . 2 1 . . 5 Record 4 | . . . . . 4 Robot Analysis 2 | . 2 . . . . Open Door 1 | . . 1 . . . EX-Prototype ID Bank 1 | . . . . . 1 Fabricator Hacks . | . . . . . . Repair Station Hacks . | . . . . . . Recycling Unit Hacks . | . . . . . . Scanalyzer . | . . . . . . Garrison Access Hacks . | . . . . . . Unauthorized Hacks . | . . . . . . Terminals . | . . . . . . Fabricators . | . . . . . . Repair Stations . | . . . . . . Recycling Units . | . . . . . . Scanalyzers . | . . . . . . Garrison Access . | . . . . . . Data Cores Recovered . | . . . . . . Used . | . . . . . . Hacking Detections 2 | . 1 . 1 . . Full Trace Events . | . . . . . . Feedback Events . | . . . . . . Feedback Blocked . | . . . . . . Robot Schematics Acquired . | . . . . . . Robots Built . | . . . . . . Authchips . | . . . . . . Time . | . . . . . . Total Robot Build Rating . | . . . . . . Part Schematics Acquired . | . . . . . . Parts Built . | . . . . . . Authchips . | . . . . . . Time . | . . . . . . Total Part Build Rating . | . . . . . . Parts Repaired . | . . . . . . Time . | . . . . . . Parts Recycled . | . . . . . . Recycled Matter . | . . . . . . Retrieved Matter . | . . . . . . Retrieved Components . | . . . . . . Parts Scanalyzed . | . . . . . . Part Schematics Acquired . | . . . . . . Parts Damaged . | . . . . . . Bothacking | -11 -10 -10 -9 -9 -9 ------------ Run | Scr Mat Min Mat Min Exi Used RIF Installer . | . . . . . . Robots Hacked 8 | . . . . . 8 Non-combat 3 | . . . . . 3 Combat 5 | . . . . . 5 Robot Hacks Applied 8 | . . . . . 8 parse_system 8 | . . . . . 8 Relay Couplers Released . | . . . . . . Fabnet Peak Effective % . | . . . . . . Robots Rewired . | . . . . . . Allies Hacked . | . . . . . . Hacks Repelled . | . . . . . . Allies | -11 -10 -10 -9 -9 -9 -------- Run | Scr Mat Min Mat Min Exi Total Allies . | . . . . . . Largest Group . | . . . . . . Highest-Rated Group . | . . . . . . Highest-Rated Ally . | . . . . . . Total Orders . | . . . . . . Ally Attacks . | . . . . . . Total Damage . | . . . . . . Kills . | . . . . . . Allies Corrupted . | . . . . . . Allies Melted . | . . . . . . Intel | -11 -10 -10 -9 -9 -9 ------- Run | Scr Mat Min Mat Min Exi Robot Analysis Total 2 | . 2 . . . . Derelict Logs Recovered 4 | . . 3 . 1 . Drone Launches . | . . . . . . Drone Recoveries . | . . . . . . Exploration | -11 -10 -10 -9 -9 -9 ------------- Run | Scr Mat Min Mat Min Exi Turns Passed 6018 | 74 1084 1282 876 567 2135 Spaces Moved 2214 | 42 433 414 321 200 804 Core 12 | 6 . . . . 6 Treads 2195 | 36 433 414 321 200 791 Legs 7 | . . . . . 7 Wheels . | . . . . . . Hover . | . . . . . . Flight . | . . . . . . Fastest Speed 50 | 50 160 240 240 240 50 Average Speed 241 | 144 201 300 240 240 237 Slowest Speed 320 | 160 320 320 240 240 320 Overloaded Moves . | . . . . . . Propulsion Burnouts . | . . . . . . Robots Hopped . | . . . . . . Cave-ins Triggered . | . . . . . . Exploration Rate (%) 54 | 4 75 95 36 36 81 Regions Visited 5 Branch Regions 3 Pre-discovered Areas 2 | . . 1 . . 1 Known Exits Taken 1 | . . 1 . . . Unknown Exits Taken 4 | 1 1 . 1 1 . Scrap Searched 2 | . . 2 . . . Spaces Dug . | . . . . . . Terrain Destroyed 14 | . . . 1 2 11 Melee . | . . . . . . Projectile 3 | . . . 1 2 . AOE 11 | . . . . . 11 Terrain Rammed . | . . . . . . Walls Destroyed . | . . . . . . Machines Disabled . | . . . . . . Actions | -11 -10 -10 -9 -9 -9 --------- Run | Scr Mat Min Mat Min Exi Total 2603 | 51 529 435 389 237 962 Wait 106 | . 9 . 14 4 79 Move 2209 | 41 432 413 320 199 804 Hop . | . . . . . . Pick Up 48 | 3 18 6 9 3 9 Fast Attach 13 | 6 2 . 3 . 2 Attach 14 | . 2 . 3 2 7 Detach 4 | . 1 . 2 . 1 Swap 16 | . 2 3 4 . 7 Drop 25 | . 2 2 12 3 6 Fire 145 | 1 61 11 22 26 24 Melee 23 | . . . . . 23 Ram . | . . . . . . Kick . | . . . . . . Crush . | . . . . . . Escape Stasis . | . . . . . . Rewire . | . . . . . . Trap . | . . . . . . Miscellaneous . | . . . . . . Route ------- -11/Scrapyard -10/Materials (discovered 4 exits: *Mat x2 / *Min x2) -10/Mines (discovered 2 exits: *Mat x2) -9/Materials (discovered 2 exits: [*Min x2]) -9/Mines (discovered 2 exits: [*Mat] / *Exi) -9/Exiles (discovered 1 exit: [*Min]) History --------- Turn | Location | Event 6 | -11/Scrapyard | Discovered new exit (range 16) 75 | -11/Scrapyard | Entered Materials 93 | -10/Materials | Central database locked down 304 | -10/Materials | Build established: Mutant 358 | -10/Materials | Discovered new exit (range 14) 506 | -10/Materials | Discovered new exit (range 12) 743 | -10/Materials | Discovered new exit (range 4) 940 | -10/Materials | Discovered new exit (range 14) 1159 | -10/Materials | Entered Mines 1204 | -10/Mines | Found a damaged Exp. Sensor Array with a note attached 1209 | -10/Mines | Found Prototype Device 1289 | -10/Mines | Found a hidden stash of uninstalled traps 1371 | -10/Mines | A weapon hastily lodged in a ceiling crevice suddenly fell to the ground 1416 | -10/Mines | Joined a pair of Derelicts in attacking an 0b10 outpost 1549 | -10/Mines | Discovered new exit (range 9) 1552 | -10/Mines | Identified exit to Materials 1595 | -10/Mines | Met a Derelict who couldn't figure out how to use a Trap Extractor 1829 | -10/Mines | Learned Materials security intel 2441 | -10/Mines | Entered Materials 2441 | -9/Materials | Evolved 2 slots: Propulsion x1, Utility x1 2531 | -9/Materials | Discovered new exit (range 12) 2883 | -9/Materials | Build established: Scavenger-Mutant 3288 | -9/Materials | Discovered new exit (range 9) 3317 | -9/Materials | Entered Mines 3318 | -9/Mines | Assembled infested the area 3361 | -9/Mines | Learned location of 1 exit from Proximity Caves 3698 | -9/Mines | Discovered new exit (range 7) 3718 | -9/Mines | Build established: Mutant 3867 | -9/Mines | Deemed a non-threat by the Exiles lab entrance 3869 | -9/Mines | Discovered new exit (range 5) 3884 | -9/Mines | Entered Exiles 4043 | -9/Exiles | Met 8R-AWN 4089 | -9/Exiles | Met EX-HEX 4199 | -9/Exiles | Met EX-BIN 4283 | -9/Exiles | Met EX-DEC 4292 | -9/Exiles | Learned location of Zion (-7) 4366 | -9/Exiles | Build established: Scavenger-Mutant 4393 | -9/Exiles | Visited The Gauntlet 4915 | -9/Exiles | Aligned with FarCom system 4917 | -9/Exiles | Given EX-Vault access code 4973 | -9/Exiles | Opened EX-Vault 5030 | -9/Exiles | Warned to stay clear of 0b10 Research branches 5139 | -9/Exiles | Attacked by the Exiles 5203 | -9/Exiles | Found 8R-AWN's Boregun 5206 | -9/Exiles | Found 8R-AWN's Boregun 5219 | -9/Exiles | Lost 6 parts (1p3n2u) 5281 | -9/Exiles | Discovered new exit (range 14) 6009 | -9/Exiles | Core integrity fell below 50% 6016 | -9/Exiles | Core integrity fell below 20% 6019 | -9/Exiles | Destroyed by DAS Turret with DAS Cannon Last Messages --------------- 05281_ EXIT=FOUND 05341_ 8R-AWN Adv. Myomer Leg severed. 05406_ Acquired Adv. Myomer Leg. 05983_ Machine disabled. 05986_ Lgt. Armor Plating destroyed. 05988_ Lgt. Treads destroyed. 05996_ Imp. Ion Engine destroyed. 06002_ Lgt. Treads destroyed. 06004_ Dropped Huge Storage Unit. 06006_ Acquired Imp. Grenade Launcher. 06006_ Imp. Grenade Launcher destroyed. 06008_ Acquired 8 matter. 06009_ Acquired 16 matter. 06013_ Acquired 1 matter. 06013_ Mining Claw destroyed. 06013_ Adv. Myomer Leg blasted off. 06015_ Hvy. Battle Rifle destroyed. 06016_ Extracted 127 matter. 06018_ Acquired 8R-AWN's Boregun. 06019_ 8R-AWN's Boregun destroyed. Map ----- +----------------------------------------------------+ | ??????????????????????????????# #?#"""""""#??? | | ?????????????????????????????## ###"" """"#??? | | ?????????????????????????????#" """"#??? | | ?????????????????????????????#" """#??? | | ?????????????????????????????#" """#??? | | ?????????????????????????????#" """#??? | | ????????????????####?????????#" """#??? | | ???????????????? """????????#" """##?? | | ????????????????" """#???????## """""?? | | ????????????????" #????????# """##?? | | ???????????????"" #????????#" "X" """""?? | | ???????????????"" "#????????#" """ #??? | | ??????????????? ""?????????#" """""""""#??? | | ? ##????????????" "?????????##" g ###########??? | | ? #???????????# #????????##"" #????????????? | | #####????### ###?######"" #????????????? | | """#####X# #"###""""""" ##???????###?? | | """""" " "" ##???####"### | | # "" """ " #####"""" "" | | ?# " " """ " | | ??## % "" | | ???### % " | | ?????## / % | | ??????## ![[![= | | ???????##" [[!!% | | ????????#""" /!/@! """""" | | ???????##" !=! ######""" | | ???????#"" ""##????#####""" | | ??????##""" """##?????????##""" | | ??????#""" """##???????????#"""" | | ??????#""" ""#???????????##"" | | ??????#"" ########??####"""" | | ??????#""" ## ####""" | | ??????#"" """" | | ??????##"" | | ???????#"""" | | ???????## " | | ????????#" " "" """ | | ????????#"""" ""## ##""" " " ""# | | ????????#"" ""#### ######""" """# | | ????????#" """"##??# #????###""""### | | ????????#""" """#??## ####???######?## | | ????????## ""##??#! "!#???????????? | | ?????????#"" """##???#" !#???????????? | | ?????????##""" ##????#" "#???????????? | | ??????????##"""" ##?????#!!"" "#???????????? | | ???????????### #??????########???????????? | | ?????????????##### ##?????????????????????????? | | ?????????????????## #??????????????????????????? | | ??????????????????# #??????????????????????????? | +----------------------------------------------------+ Best States ------------- Heat Dissipation 42 Energy Generation 12 Energy Capacity 265 Matter Stores 300 Matter Capacity 300 Sight Range 16 Terrain Scan Density 10 Armor Coverage 300 Evasion (%) 45 Recoil Reduction 3 Item Schematics ----------------- None Robot Schematics ------------------ None Fabricated ------------ Nothing Alien Tech Used ----------------- None Achievements -------------- None Challenges ------------ None Game ------ Seed DataMyomerCalibrator Manual? 0 Play Time 00:23:48 Cumulative 339.6 hours Start 2022.04.18 @ 13:09:31 End 2022.04.18 @ 13:34:48 Sessions 1 Manual Loads 0 Difficulty Rogue Special Mode None Game No. 499 Rogue 499 Adventurer 0 Explorer 0 Win Type - Total 6 Types 4/0/1/1/0/0/0/0/0 Lore% 81 Gallery% 84 Achievement% 66 Wizard Run 0 Options --------- ASCII 0 Keyboard 1 Movement Numpad Keybinds 0 Fullscreen 2 Font 24/Smallcaps Map View 76x50 Tactical HUD 1 Map Filters NONE Filters NONE Steam 1 RUN: a0ea38ff-67c9-43d2-864d-061964fbdb4a